Cogmind - Beta 13 @@@ ROGUE MODE // 2024.04.18 @ 13:19:27 Player: sve9 Result: Destroyed by 2C-BQ4(R) with Subdweller Machine Gun Performance ------------- Evolutions (0) 0 Regions Visited (2) 400 Robots Destroyed (34) 170 Value Destroyed (919) 919 Prototype IDs (0) 0 Alien Tech Used (0) 0 Bonus (0) 0 TOTAL SCORE: 1489 Bonus ------- None Cogmind --------- Core Integrity 0/250 Matter 263/300 Energy 94/100 System Corruption 0% Temperature Cool (0) Movement Treading (160) Location -10/Subcaves Parts ------- > --- POWER (1) -------- (None) > --- PROPULSION (2) --- Light Treads > --- UTILITY (2) ------ (None) > --- WEAPON (2) ------- Ripper > --- INVENTORY (5) ---- Improved Ion Engine High-capacity Matter Pod (200) Hacking Suite Grenade Launcher Peak State ------------ > --- POWER ------------ Improved Ion Engine > --- PROPULSION ------- Light Treads Spiked Treads > --- UTILITY ---------- Scrap Shield > --- WEAPON ----------- Slug Cannon Ripper > --- INVENTORY -------- Improved Ion Engine Medium Matter Pod Hacking Suite Battle Rifle Grenade Launcher [Rating: 17] Favorites ----------- Power Improved Ion Engine Engine Improved Ion Engine Propulsion Light Treads Treads Light Treads Utility Scrap Shield Device Seismic Detector Storage Small Storage Unit Protection Scrap Shield Weapon Slug Cannon Energy Gun EM Pulse Gun Ballistic Gun Battle Rifle Ballistic Cannon Slug Cannon Launcher Grenade Launcher Impact Weapon Mace Slashing Weapon Ripper Build | -11 -10 -10 ------- Run | Yrd Mat Sub Slots Evolved . | . . . Power . | . . . Propulsion . | . . . Utility . | . . . Weapon . | . . . Parts Attached 33 | 7 10 16 Power 4 | 1 3 . Engine 4 | 1 3 . Core . | . . . Reactor . | . . . Propulsion 6 | 2 1 3 Treads 6 | 2 1 3 Leg . | . . . Wheel . | . . . Hover . | . . . Flight . | . . . Utility 5 | 2 1 2 Device 1 | 1 . . Storage 1 | 1 . . Processor . | . . . Hackware . | . . . Protection 3 | . 1 2 Artifact . | . . . Weapon 18 | 2 5 11 Energy Gun 2 | 1 1 . Energy Cannon . | . . . Ballistic Gun 5 | 1 2 2 Ballistic Cannon 5 | . 1 4 Launcher 1 | . . 1 Special Weapon . | . . . Impact Weapon 1 | . 1 . Slashing Weapon 4 | . . 4 Piercing Weapon . | . . . Special Melee Weapon . | . . . Unidentified Prototypes . | . . . Parts Lost 7 | . . 7 Power 1 | . . 1 Propulsion 2 | . . 2 Utility 2 | . . 2 Weapon 2 | . . 2 Highest Loss Streak 5 | . . 5 To Critical Strikes . | . . . Average Slot Usage (%) 89 | . 99 84 Engine 13 | . 13 13 Treads 27 | . 27 27 Device 4 | . 13 . Storage 5 | . 14 . Protection 8 | . . 13 Energy Gun 1 | . 2 . Ballistic Gun 11 | . 11 11 Ballistic Cannon 12 | . 11 13 Impact Weapon 2 | . 2 1 Naked Turns . | . . . Heaviest Build 35 | 15 25 35 Greatest Support 40 | 40 40 40 Greatest Overweight (x) . | . . . Average Overweight (x) . | . . . Largest Inventory Capacity 8 | 8 8 8 Average Capacity 6 | 7 8 5 Most Carried 8 | 5 8 8 Average Carried 5 | 2 7 5 Final Capacity 8 | 8 8 5 Final Carried 8 | 5 8 4 Class Distribution -------------------- 100% | Mutant Dominant Class ---------------- Mutant | -10/Materials Mutant | -10/Subcaves Resources | -11 -10 -10 ----------- Run | Yrd Mat Sub Matter Collected 1665 | 285 260 1120 Remotely . | . . . Salvage Created 855 | 87 211 557 Parts 72 | 7 20 45 Haulers Intercepted 1 | . 1 . Recyclers Shooed . | . . . Parts Field Recycled . | . . . Retrieved Matter . | . . . Parts Self-Destructed 13 | . . 13 Prevented . | . . . Kills | -11 -10 -10 ------- Run | Yrd Mat Sub Combat Hostiles Destroyed 30 | . 10 20 Guns 16 | . 6 10 Cannons 11 | . 4 7 AOE 3 | . . 3 Classes Destroyed 8 | 2 4 2 Tunneler 1 | 1 . . Hauler 1 | . 1 . Recycler 1 | 1 . . Operator 1 | . 1 . Swarmer 10 | . 6 4 Grunt 5 | . 4 1 Sentry 1 | . . 1 Subdweller 14 | . . 14 Best Kill Streak 4 | 2 3 4 Combat Bots Only 4 | . 3 4 Max Kills in Single Turn 2 | 1 2 2 Gunslinging 1 | . 1 . Exploded 2 | . . 2 Melee . | . . . Uniques/NPCs Destroyed . | . . . Combat | -11 -10 -10 -------- Run | Yrd Mat Sub Hostile Shots Fired 213 | . 45 168 Missed 79 | . 17 62 Damage Taken 1998 | . 349 1649 Core 267 | . 44 223 Absorbed by Shields . | . . . Redirected to Shielding 56 | . . 56 Core Remaining (%) 100 | 100 . . Volleys Fired 147 | 5 51 91 Largest 2 | 2 2 2 Hottest 73 | 60 60 73 Shots Fired 238 | 10 83 145 Gun 112 | 10 37 65 Cannon 124 | . 46 78 Launcher 2 | . . 2 Special . | . . . Kinetic 226 | 5 78 143 Thermal . | . . . Explosive 2 | . . 2 Electromagnetic 10 | 5 5 . Robot Hit Streak 19 | 2 6 19 Robot Miss Streak 7 | 1 7 4 Penetration Max . | . . . Secondary Targets 1 | . 1 . Max Gunslinging Chain 1 | . 1 . Shots Hit Robots 148 | 5 38 105 Core Hits 52 | 3 15 34 Critical Kills 1 | . . 1 Critical Parts Destroyed 1 | . . 1 Critical Strikes 4 | . . 4 Destroy 4 | . . 4 Melee Attacks 12 | . . 12 Impact . | . . . Slashing 12 | . . 12 Piercing . | . . . Sneak Attacks . | . . . Combat Hostiles . | . . . Follow-up Attacks . | . . . Damage Inflicted 2893 | 58 618 2217 Guns 1021 | 58 229 734 Cannons 1361 | . 389 972 Explosions 252 | . . 252 Melee 259 | . . 259 Ramming . | . . . Kinetic 2336 | 33 597 1706 Thermal . | . . . Explosive 252 | . . 252 Electromagnetic 46 | 25 21 . Impact . | . . . Slashing 259 | . . 259 Piercing . | . . . Highest Corruption . | . . . Average Corruption . | . . . Corruption Purged . | . . . Corruption Blocked . | . . . Overload Shots . | . . . Overflow Damage 55 | . 16 39 Projectiles 29 | . 16 13 Explosions 26 | . . 26 Melee . | . . . Knockbacks 11 | . 3 8 Impact . | . . . Kinetic 11 | . 3 8 Secondary . | . . . Self-Inflicted Damage . | . . . Shots . | . . . Rammed . | . . . Targets Rammed . | . . . Kicked . | . . . Crushed . | . . . Highest Temperature 78 | . 78 12 Average Temperature 25 | . 41 4 Received Heat Transfer 552 | . 96 456 Siege Activations . | . . . Robots Corrupted . | . . . Combat Hostiles . | . . . Parts Fried . | . . . Impact Corruptions . | . . . Robots Melted . | . . . Combat Hostiles . | . . . Parts Melted . | . . . Heat Transferred . | . . . Parts Sabotaged . | . . . Parts Stolen . | . . . Parts Stripped . | . . . Power Chain Reactions . | . . . Alert | -11 -10 -10 ------- Run | Yrd Mat Sub Peak Influence 157 | 10 157 . Initial 6 | . 6 . Average 40 | 2 43 . Maximum Alert Level . | . . . Low Security (%) 100 | 100 100 . Level 1 . | . . . Level 2 . | . . . Level 3 . | . . . Level 4 . | . . . Level 5 . | . . . High Security . | . . . Max Security . | . . . Squads Dispatched 1 | . 1 . Investigation . | . . . Extermination . | . . . Reinforcement 1 | . 1 . Assault . | . . . Garrison . | . . . Intercept . | . . . Searches Triggered . | . . . Construction Impeded . | . . . Haulers Reinforced . | . . . Active Scanning Responses . | . . . Cargo Convoy Interrupts . | . . . Stealth | -11 -10 -10 --------- Run | Yrd Mat Sub Distress Signals . | . . . Communications Jammed . | . . . Distress Signals . | . . . Times Spotted 43 | . 14 29 Peak Tracking Total 6 | . 4 6 Tactical Retreats 4 | . 1 3 Traps | -11 -10 -10 ------- Run | Yrd Mat Sub Traps Triggered 5 | . 5 . Indirectly . | . . . Trap Hack Attempts . | . . . Triggered . | . . . Disarmed . | . . . Reprogrammed . | . . . Reused . | . . . Traps Extracted . | . . . Installed . | . . . Triggered . | . . . Machines | -11 -10 -10 ---------- Run | Yrd Mat Sub Machines Disabled . | . . . Max in Single Turn . | . . . Machines Repaired . | . . . Machines Dismantled . | . . . Machines Sabotaged . | . . . Overloaded Fab Kills . | . . . Hacking | -11 -10 -10 --------- Run | Yrd Mat Sub Machines Accessed 5 | . 4 1 Terminals 3 | . 3 . Fabricators . | . . . Repair Stations . | . . . Recycling Units 1 | . 1 . Scanalyzers . | . . . Garrison Access . | . . . Total Hacks 16 | . 15 1 Successful 10 | . 9 1 Failed 6 | . 6 . Catastrophic 1 | . 1 . Database Lockouts . | . . . Manual 6 | . 6 . Terminals 10 | . 10 . Fabricators . | . . . Repair Stations . | . . . Recycling Units 5 | . 5 . Scanalyzers . | . . . Garrison Access . | . . . Terminal Hacks 3 | . 2 1 Record 1 | . . 1 Locate Traps 1 | . 1 . Zone Layout 1 | . 1 . Fabricator Hacks . | . . . Repair Station Hacks . | . . . Recycling Unit Hacks 4 | . 4 . Process 1 | . 1 . Report Inventory 1 | . 1 . Retrieve Matter 2 | . 2 . Scanalyzer . | . . . Garrison Access Hacks . | . . . Unauthorized Hacks 3 | . 3 . Terminals 3 | . 3 . Botnet 2 | . 2 . Operators 1 | . 1 . Fabricators . | . . . Repair Stations . | . . . Recycling Units . | . . . Scanalyzers . | . . . Garrison Access . | . . . Data Cores Recovered . | . . . Used . | . . . Hacking Detections 2 | . 2 . Full Trace Events . | . . . Feedback Events . | . . . Feedback Blocked . | . . . Robot Schematics Acquired . | . . . Robots Built . | . . . Authchips . | . . . Time . | . . . Total Robot Build Rating . | . . . Part Schematics Acquired . | . . . Parts Built . | . . . Authchips . | . . . Time . | . . . Total Part Build Rating . | . . . Parts Repaired . | . . . Time . | . . . Parts Recycled . | . . . Recycled Matter 139 | . 139 . Retrieved Matter 139 | . 139 . Retrieved Components . | . . . Parts Scanalyzed . | . . . Part Schematics Acquired . | . . . Parts Damaged . | . . . Bothacking | -11 -10 -10 ------------ Run | Yrd Mat Sub Used RIF Installer . | . . . Robots Hacked . | . . . Non-combat . | . . . Combat . | . . . Robot Hacks Applied . | . . . Relay Couplers Released . | . . . Fabnet Peak Effective % . | . . . Robots Rewired . | . . . Allies Hacked . | . . . Hacks Repelled . | . . . Allies | -11 -10 -10 -------- Run | Yrd Mat Sub Total Allies . | . . . Largest Group . | . . . Highest-Rated Group . | . . . Highest-Rated Ally . | . . . Total Orders . | . . . Ally Attacks . | . . . Total Damage . | . . . Kills . | . . . Allies Corrupted . | . . . Allies Melted . | . . . Intel | -11 -10 -10 ------- Run | Yrd Mat Sub Robot Analysis Total . | . . . Derelict Logs Recovered 2 | . . 2 Drone Launches . | . . . Drone Recoveries . | . . . Exploration | -11 -10 -10 ------------- Run | Yrd Mat Sub Turns Passed 3820 | 117 1311 2392 Spaces Moved 1905 | 56 573 1276 Core 3 | 3 . . Treads 1902 | 53 573 1276 Legs . | . . . Wheels . | . . . Hover . | . . . Flight . | . . . Fastest Speed 50 | 50 160 160 Average Speed 159 | 154 160 160 Slowest Speed 160 | 160 160 160 Overloaded Moves . | . . . Propulsion Burnouts . | . . . Robots Hopped . | . . . Cave-ins Triggered . | . . . Exploration Rate (%) 45 | 4 68 65 Regions Visited 2 Branch Regions 1 Pre-discovered Areas . | . . . Known Exits Taken . | . . . Unknown Exits Taken 2 | 1 1 . Scrap Searched 8 | . . 8 Spaces Dug 1 | . . 1 Terrain Destroyed 45 | . 1 44 Melee . | . . . Projectile 29 | . 1 28 AOE 16 | . . 16 Terrain Rammed . | . . . Walls Destroyed . | . . . Machines Disabled . | . . . Actions | -11 -10 -10 --------- Run | Yrd Mat Sub Total 2433 | 73 887 1473 Wait 281 | 1 228 52 Move 1903 | 55 572 1276 Hop . | . . . Pick Up 24 | 5 14 5 Fast Attach 14 | 7 5 2 Attach 3 | . 1 2 Detach . | . . . Swap 16 | . 4 12 Drop 22 | . 12 10 Fire 147 | 5 51 91 Melee 12 | . . 12 Ram . | . . . Kick . | . . . Crush . | . . . Escape Stasis . | . . . Rewire 2 | . . 2 Trap . | . . . Miscellaneous 9 | . . 9 Route ------- -11/Scrapyard -10/Materials (discovered 4 exits: [*Mat x2] / [*Min] / *Sub) -10/Subcaves (discovered 2 exits: [*Mat x2]) History --------- Turn | Location | Event 7 | -11/Scrapyard | Discovered new exit (range 16) 118 | -11/Scrapyard | Entered Materials 262 | -10/Materials | Discovered new exit (range 11) 318 | -10/Materials | Build established: Mutant 508 | -10/Materials | Discovered new exit (range 7) 655 | -10/Materials | Discovered new exit (range 10) 1423 | -10/Materials | Discovered new exit (range 4) 1429 | -10/Materials | Entered Subcaves 1431 | -10/Subcaves | Learned location of 1 exit from Materials 1562 | -10/Subcaves | Discovered new exit (range 16) 1931 | -10/Subcaves | Ambushed by Subdweller buried in earth 1976 | -10/Subcaves | Shifting Twisted Machinery released Ripper 1986 | -10/Subcaves | Shifting Twisted Machinery released Spk. Treads 2239 | -10/Subcaves | Visited Clippyterm 2253 | -10/Subcaves | Shifting Twisted Machinery released Sub. Optics 2255 | -10/Subcaves | Shifting Twisted Machinery released Battle Rifle 2289 | -10/Subcaves | Learned 8 Materials zone layouts 2607 | -10/Subcaves | A swath of the cavern ceiling suddenly collapsed 2770 | -10/Subcaves | Discovered new exit (range 9) 2797 | -10/Subcaves | Core integrity fell below 50% 3784 | -10/Subcaves | Core integrity fell below 20% 3821 | -10/Subcaves | Destroyed by 2C-BQ4(R) with Subdweller Machine Gun Last Messages --------------- 03684_ Hvy. Assault Rifle fries itself beyond repair. 03684_ Acquired 7 matter. 03687_ Acquired 55 matter. 03690_ Heat Sink fries itself beyond repair. 03691_ Imp. Ion Engine fries itself beyond repair. 03692_ Beam Rifle fries itself beyond repair. 03695_ Acquired 6 matter. 03777_ Slug Cannon destroyed. 03784_ Propulsion Shielding destroyed. 03785_ 3H-6RM(R) destroyed. 03785_ Spk. Treads destroyed. 03796_ 2C-BQ4(R) suffers critical hit (Destroy). 03800_ 2C-BQ4(R) affixes Scrap Shield Fragment to Scrap Shield. 03803_ Imp. Ion Engine destroyed. 03806_ 2C-BQ4(R) affixes Scrap Shield Fragment to Scrap Shield. 03818_ Destroyed Scrap Shield. 03819_ Battle Rifle destroyed. Map ----- +----------------------------------------------------+ | ?????????????????????????????????????????????????? | | ?????????????????????????????????????????????????? | | ?????????????????????????????????????????????????? | | ?????????????????????????????????????????????????? | | ?????????????????????????????????????????????????? | | ?????????????????????????????????????????????????? | | ?????????????????????????????????????????????????? | | ?????????????????????????????????????????????????? | | ?????????????????????????????????????????????????? | | ?????????????????????????????????????????????????? | | ?????????????????????????????????????????????????? | | ?????????????????????????????????????????????????? | | ?????????????????????????????????????????????????? | | ???????????????????????????????????????#######???? | | ???????????????????????###?????????????# #???? | | ???????????????????????# #####??#####??# ##??? | | ?????????????# ????????# ## #### # #??# ##?? | | ?????????????# ??????## #??# #?? | | ?????????????? ?????# ##?# ### | | ???????????????" ???## """ # #??# ??# | | ???????????????#" ??# """" ### #??## ##### | | ??????????????## #?## " ""### ##??# ## | | ??????????????# ### "## #??# %## | | ??????????????# """" ### #??# = | | ??????????????? """ " ;#?## ##??# # # | | ???????????????"""""" =&@ ##??# #???###### | | ????????????????""""" !&R *#???# ##?####?## | | ????????????????#" " %""#???# ### ###" # | | ????????????????# """"" #??# ## # | | ???????????????# """""""#?##### # | | ???????????????# " """"""""" #?????## | | ??????????????#"""""""""""####??????# | | ??????????????"""""" ? ????????????## | | ??????????????? "?" ???????????????# ## | | ??????????????????? ????????????????# ### | | ??????????????????? ?????????????????# #? | | ????????????????????????????????????# ## #? | | ???????????????????????????????????# ###### #? | | ???????????????????????????????????# #?#### #? | | ???????????????????????????????????####### #? | | ??????????????????????????????????????## ## | | ??????????????????????????????????????# ## | | ?????????????????????????????????????# ### | | ?????????????????????????????????????###???## | | ????????????????????????????????????????????# | | ????????????????????????????????????????????# | | ????????????????????????????????????????????# | | ????????????????????????????????????????????# | | ??????????????????????????????????? ??????# | | ??????????????????????????????????? ?????# | +----------------------------------------------------+ Best States ------------- Heat Dissipation 25 Energy Generation 12 Energy Capacity 265 Matter Stores 300 Matter Capacity 300 Sight Range 16 Terrain Scan Density 10 Armor Coverage 800 Propulsion Shielding 33 Evasion (%) 40 Recoil Reduction 2 Item Schematics ----------------- None Robot Schematics ------------------ None Fabricated ------------ Nothing Alien Tech Used ----------------- None Achievements -------------- None Challenges ------------ None Game ------ Seed ArchitectSpliceBarrier Manual? 0 Play Time 00:39:17 Cumulative 4.7 hours Start 2024.04.17 @ 23:07:03 End 2024.04.18 @ 13:19:27 Sessions 2 Manual Loads 0 Difficulty Rogue Special Mode None Game No. 5 Rogue 5 Adventurer 0 Explorer 0 Win Type - Total 0 Types 0/0/0/0/0/0/0/0/0 Lore% 9 Gallery% 10 Achievement% 11 Wizard Run 0 Options --------- Layout 1 ASCII 0 Keyboard 0 Movement Vi Keybinds 0 Fullscreen 1 Font 18/SmallcapsGlow Map View 54x44 Zoom Use 0% Tactical HUD 1 Map Filters NONE Filters NONE Steam 0 RUN: ecc7ecb1-2c26-4207-91cd-02d82f490191